fUSD/lending_fUSD_20240119
["ID","MTS","AMOUNT","RATE_DAILY","PERIOD"]
[312137195,1705666314780,-3236.89,0.00024075,2]
[312137196,1705666314792,-2323.62,0.00024075,2]
[312137197,1705666314804,-3099.95,0.00024075,2]
[312137198,1705666314817,-1604.1,0.00024075,2]
[312137199,1705666314830,-3224.28,0.00024075,2]
[312137200,1705666314843,-626.86,0.00024075,2]
[312137201,1705666314855,-783.31,0.00024075,2]
[312137202,1705666314866,-3676.75,0.00024075,2]
[312137203,1705666314878,-1875.81,0.00024075,2]
[312137204,1705666314893,-838.41,0.00024075,2]
[312137205,1705666314905,-819.65,0.00024075,2]
[312137206,1705666314917,-993.83,0.00024075,2]
[312137207,1705666314928,-1210.28,0.00024075,2]
[312137208,1705666314939,-500.0,0.00024075,2]
[312137209,1705666314951,-150.0,0.00024089,2]
[312137210,1705666314963,-150.0,0.00024089,2]
[312137211,1705666314975,-3394.92,0.0002409,2]
[312137212,1705666314987,-2245.7,0.0002409,2]
[312137213,1705666314999,-2640.33,0.0002409,5]
[312137214,1705666315011,-1564.92,0.0002409,2]
[312137215,1705666315024,-1643.94,0.0002409,2]
[312137216,1705666315035,-15598.58,0.0002409,2]
[312137217,1705666315046,-19754.48,0.0002409,2]
[312137218,1705666315057,-11426.74,0.0002409,2]
[312137219,1705666315070,-1205.31,0.0002409,2]
[312137220,1705666315082,-500.0,0.0002409,2]
[312137221,1705666315094,-5092.13,0.0002409,2]
[312137222,1705666315107,-2505.92,0.0002409,2]
[312137223,1705666315118,-2542.57,0.0002409,2]
[312137224,1705666315130,-1214.32,0.0002409,2]
[312137225,1705666315141,-2516.11,0.0002409,2]
[312137226,1705666315152,-5945.8,0.0002409,2]
[312137227,1705666315164,-47078.31,0.0002409,2]
[312137228,1705666315176,-753.07,0.0002409,2]
[312137229,1705666315189,-3287.55,0.0002409,2]
[312137230,1705666315200,-2887.71,0.0002409,2]
[312137231,1705666315213,-1180.41,0.0002409,2]
[312137232,1705666315224,-1115.89,0.0002409,2]
[312137233,1705666315236,-4394.09,0.0002409,2]
[312137234,1705666315248,-500.0,0.0002409,2]
[312137235,1705666315260,-1102.23,0.0002409,2]
[312137236,1705666315271,-1589.65,0.0002409,2]
[312137237,1705666315283,-34180.49,0.0002409,2]
[312137238,1705666315295,-2952.43,0.0002409,2]
[312137239,1705666315307,-892.05,0.0002409,2]
[312137240,1705666315318,-2360.62,0.0002409,2]
[312137241,1705666315330,-2662.92,0.0002409,2]
[312137242,1705666315343,-4108.99,0.0002409,2]
[312137243,1705666315355,-500.0,0.00024091,2]
[312137244,1705666315366,-500.0,0.00024091,2]
[312137245,1705666315378,-500.0,0.00024091,2]
[312137246,1705666315390,-500.0,0.00024091,2]
[312137247,1705666315402,-500.0,0.00024091,2]
[312137248,1705666315413,-500.0,0.00024091,2]
[312137249,1705666315425,-500.0,0.00024091,2]
[312137250,1705666315436,-500.0,0.00024091,2]
[312137251,1705666315448,-540.39948803,0.00024091,2]
[312137252,1705666315460,-500.0,0.00024091,2]
[312137253,1705666315472,-500.0,0.00024091,2]
[312137254,1705666315483,-500.0,0.00024091,2]
[312137255,1705666315495,-500.0,0.00024091,2]
[312137256,1705666315508,-500.0,0.00024091,2]
[312137257,1705666315520,-598.8,0.00024091,2]
[312137258,1705666315532,-543.5,0.00024091,2]
[312137259,1705666315543,-500.0,0.00024091,2]
[312137260,1705666315555,-500.0,0.00024091,2]
[312137261,1705666315567,-500.0,0.00024091,2]
[312137262,1705666315579,-522.13474355,0.00024091,2]
[312137263,1705666315591,-628.05,0.00024091,2]
[312137264,1705666315604,-500.0,0.00024091,2]
[312137265,1705666315616,-960.21,0.00024091,2]
[312137266,1705666315628,-1176.38,0.00024091,2]
[312137267,1705666315641,-500.0,0.00024091,2]
[312137268,1705666315653,-517.02707768,0.00024091,2]
[312137269,1705666315664,-577.3,0.00024091,2]
[312137270,1705666315676,-500.0,0.00024091,2]
[312137271,1705666315687,-500.0,0.00024091,2]
[312137272,1705666315698,-589.13,0.00024091,2]
[312137273,1705666315711,-907.94,0.00024091,2]
[312137274,1705666315722,-915.25,0.00024091,2]
[312137275,1705666315734,-953.2,0.00024091,2]
[312137276,1705666315746,-554.43,0.00024091,2]
[312137277,1705666315758,-500.0,0.00024091,2]
[312137278,1705666315770,-535.65593702,0.00024091,2]
[312137279,1705666315783,-592.33,0.00024091,2]
[312137280,1705666315795,-865.14,0.00024091,2]
[312137281,1705666315806,-500.0,0.00024091,2]
[312137282,1705666315819,-500.0,0.00024091,2]
[312137283,1705666315830,-694.6,0.00024091,2]
[312137284,1705666315842,-500.0,0.00024091,2]
[312137285,1705666315853,-500.0,0.00024091,2]
[312137286,1705666315864,-699.21,0.00024091,2]
[312137287,1705666315876,-634.28,0.00024091,2]
[312137288,1705666315887,-500.0,0.00024091,2]
[312137289,1705666315899,-500.0,0.00024091,2]
[312137290,1705666315916,-1018.36,0.00024091,2]
[312137291,1705666315928,-988.95,0.00024091,2]
[312137292,1705666315939,-500.0,0.00024091,2]
[312137293,1705666315951,-700.19,0.00024091,2]
[312137294,1705666315962,-500.0,0.00024091,2]
[312137295,1705666315975,-500.0,0.00024091,2]
[312137296,1705666315986,-727.89,0.00024091,2]
[312137297,1705666315998,-500.0,0.00024091,2]
[312137298,1705666316010,-1090.17,0.00024091,2]
[312137299,1705666316022,-500.0,0.00024091,2]
[312137300,1705666316033,-500.0,0.00024091,2]
[312137301,1705666316044,-500.0,0.00024091,2]
[312137302,1705666316056,-1289.78,0.00024091,2]
[312137303,1705666316068,-500.0,0.00024091,2]
[312137304,1705666316079,-500.0,0.00024091,2]
[312137305,1705666316091,-1120.95,0.00024091,2]
[312137306,1705666316103,-1300.86,0.00024091,2]
[312137307,1705666316115,-698.1,0.00024091,2]
[312137308,1705666316126,-906.66,0.00024091,2]
[312137309,1705666316139,-500.0,0.00024091,2]
[312137310,1705666316150,-919.21,0.00024091,2]
[312137311,1705666316161,-500.0,0.00024091,2]
[312137312,1705666316174,-500.0,0.00024091,2]
[312137313,1705666316186,-545.64,0.00024091,2]
[312137314,1705666316197,-500.0,0.00024091,2]
[312137315,1705666316209,-1384.85,0.00024091,2]
[312137316,1705666316222,-500.0,0.00024091,2]
[312137317,1705666316234,-977.33,0.00024091,2]
[312137318,1705666316246,-500.0,0.00024091,2]
[312137319,1705666316257,-500.0,0.00024091,2]
[312137320,1705666316269,-1012.68,0.00024091,2]
[312137321,1705666316281,-1000.0,0.00024091,2]
[312137322,1705666316294,-500.0,0.00024091,2]
[312137323,1705666316305,-1136.47,0.00024091,2]
[312137324,1705666316317,-500.0,0.00024091,2]
[312137325,1705666316328,-785.17,0.00024091,2]
[312137326,1705666316339,-500.0,0.00024091,2]
[312137327,1705666316350,-500.0,0.00024091,2]
[312137328,1705666316361,-500.0,0.00024091,2]
[312137329,1705666316373,-648.64,0.00024091,2]
[312137330,1705666316384,-500.0,0.00024091,2]
[312137331,1705666316396,-1005.41,0.00024091,2]
[312137332,1705666316407,-500.0,0.00024091,2]
[312137333,1705666316421,-500.0,0.00024091,2]
[312137334,1705666316432,-730.87,0.00024091,2]
[312137335,1705666316444,-756.0,0.00024091,2]
[312137336,1705666316456,-709.1,0.00024091,2]
[312137337,1705666316479,-681.37,0.00024091,2]
[312137338,1705666316493,-500.0,0.00024091,2]
[312137339,1705666316505,-500.0,0.00024091,2]
[312137340,1705666316517,-500.0,0.00024091,2]
[312137341,1705666316529,-626.37,0.00024091,2]
[312137342,1705666316541,-500.0,0.00024091,2]
[312137343,1705666316551,-500.0,0.00024091,2]
[312137344,1705666316563,-500.0,0.00024091,2]
[312137345,1705666316575,-500.0,0.00024091,2]
[312137346,1705666316587,-500.0,0.00024091,2]
[312137347,1705666316599,-500.0,0.00024091,2]
[312137348,1705666316610,-500.0,0.00024091,2]
[312137349,1705666316623,-926.69,0.00024091,2]
[312137350,1705666316635,-617.42,0.00024091,2]
[312137351,1705666316647,-500.0,0.00024091,2]
[312137352,1705666316658,-618.52,0.00024091,2]
[312137353,1705666316669,-500.0,0.00024091,2]
[312137354,1705666316681,-500.0,0.00024091,2]
[312137355,1705666316692,-500.0,0.00024091,2]
[312137356,1705666316703,-500.0,0.00024091,2]
[312137357,1705666316715,-530.48,0.00024091,2]
[312137358,1705666316727,-500.0,0.00024091,7]
[312137359,1705666316740,-500.0,0.00024091,2]
[312137360,1705666316752,-500.0,0.00024091,2]
[312137361,1705666316765,-500.0,0.00024091,2]
[312137362,1705666316777,-500.0,0.00024091,2]
[312137363,1705666316789,-500.0,0.00024091,2]
[312137364,1705666316801,-596.7,0.00024091,2]
[312137365,1705666316814,-651.28,0.00024091,2]
[312137366,1705666316827,-869.05,0.00024091,2]
[312137367,1705666316839,-813.98,0.00024091,2]
[312137368,1705666316851,-858.03,0.00024091,2]
[312137369,1705666316863,-1255.83,0.00024091,2]
[312137370,1705666316877,-500.0,0.00024091,2]
[312137371,1705666316889,-500.0,0.00024091,2]
[312137372,1705666316902,-500.0,0.00024091,2]
[312137373,1705666316915,-500.0,0.00024091,2]
[312137374,1705666316930,-1127.81,0.00024091,2]
[312137375,1705666316942,-737.1,0.00024091,2]
[312137376,1705666316955,-500.0,0.00024091,2]
[312137377,1705666316967,-933.45,0.00024091,2]
[312137378,1705666316979,-156.1682155,0.00024091,2]
[312137379,1705666316991,-1285.45,0.00024091,2]
[312137380,1705666317004,-799.51,0.00024091,2]
[312137381,1705666317018,-500.0,0.00024091,2]
[312137382,1705666317031,-500.0,0.00024091,2]
[312137383,1705666317044,-1604.6,0.00024091,2]
[312137384,1705666317056,-565.02,0.00024091,2]
[312137385,1705666317068,-500.0,0.00024091,2]
[312137386,1705666317080,-500.0,0.00024091,2]
[312137387,1705666317092,-500.0,0.00024091,2]
[312137388,1705666317103,-500.0,0.00024091,2]
[312137389,1705666317116,-500.0,0.00024091,2]
[312137390,1705666317129,-520.46,0.00024091,2]
[312137391,1705666317141,-500.0,0.00024091,2]
[312137392,1705666317154,-500.0,0.00024091,2]
[312137393,1705666317165,-728.86,0.00024091,2]
[312137394,1705666317177,-1264.15,0.00024091,2]
[312137395,1705666317190,-500.0,0.00024091,2]
[312137396,1705666317202,-649.55,0.00024091,2]
[312137397,1705666317214,-500.0,0.00024091,2]
[312137398,1705666317226,-511.23,0.00024091,2]
[312137399,1705666317237,-500.0,0.00024091,2]
[312137400,1705666317250,-977.19,0.00024091,2]
[312137401,1705666317262,-500.0,0.00024091,2]
[312137402,1705666317274,-500.0,0.00024091,2]
[312137403,1705666317286,-1528.44,0.00024091,2]
[312137404,1705666317297,-500.0,0.00024091,2]
[312137405,1705666317308,-500.0,0.00024091,2]
[312137406,1705666317320,-1679.82,0.00024091,2]
[312137407,1705666317332,-500.0,0.00024091,2]
[312137408,1705666317343,-627.3,0.00024091,2]
[312137409,1705666317356,-500.0,0.00024091,2]
[312137410,1705666317367,-500.0,0.00024091,2]
[312137411,1705666317379,-524.11989504,0.00024091,2]
[312137412,1705666317391,-500.0,0.00024091,2]
[312137413,1705666317404,-1835.52,0.00024091,2]
[312137414,1705666317415,-9652.13,0.00024091,2]
[312137415,1705666317427,-515.26,0.00024091,2]
[312137416,1705666317439,-500.0,0.00024091,2]
[312137417,1705666317452,-500.0,0.00024091,2]
[312137418,1705666317464,-500.0,0.00024091,2]
[312137419,1705666317474,-500.0,0.00024091,2]
[312137420,1705666317485,-500.0,0.00024091,2]
[312137421,1705666317650,-1150.41,0.00024091,2]
[312137422,1705666317662,-4685.36,0.00024091,2]
[312137423,1705666317675,-500.0,0.00024091,2]
[312137424,1705666317687,-500.0,0.00024091,2]
[312137425,1705666317698,-500.0,0.00024091,2]
[312137426,1705666317709,-500.0,0.00024091,2]
[312137427,1705666317722,-1244.76,0.00024091,2]
[312137428,1705666317733,-836.26,0.00024091,2]
[312137429,1705666317744,-2001.17,0.00024091,2]
[312137430,1705666317755,-643.71,0.00024091,2]
[312137431,1705666317766,-443.49288994,0.00024091,2]
[312137432,1705666317777,-500.0,0.00024091,2]
[312137433,1705666317789,-500.0,0.00024091,2]
[312137434,1705666317800,-500.0,0.00024091,2]
[312137435,1705666317811,-500.0,0.00024091,2]
[312137436,1705666317823,-673.35,0.00024091,2]
[312137437,1705666317835,-500.0,0.00024091,2]
[312137438,1705666317847,-504.87,0.00024091,2]
[312137439,1705666317859,-771.28,0.00024091,2]
[312137440,1705666317871,-500.0,0.00024091,2]
[312137441,1705666317882,-500.0,0.00024091,2]
[312137442,1705666317894,-1538.26,0.00024091,2]
[312137443,1705666317907,-5075.2,0.00024091,2]
[312137444,1705666317918,-500.0,0.00024091,2]
[312137445,1705666317931,-1267.24,0.00024091,2]
[312137446,1705666317943,-1264.86,0.00024091,2]
[312137447,1705666317954,-1609.06,0.00024091,2]
[312137448,1705666317966,-847.45,0.00024091,2]
[312137449,1705666317978,-500.0,0.00024091,2]
[312137450,1705666317989,-500.0,0.00024091,2]
[312137451,1705666318000,-500.0,0.00024091,2]
[312137452,1705666318012,-990.0,0.00024091,2]
[312137453,1705666318025,-500.0,0.00024091,2]
[312137454,1705666318036,-3252.2,0.00024091,2]
[312137455,1705666318048,-500.0,0.00024091,2]
[312137456,1705666318059,-500.0,0.00024091,2]
[312137457,1705666318070,-500.0,0.00024091,2]
[312137458,1705666318081,-3626.74,0.00024091,2]
[312137459,1705666318092,-500.0,0.00024091,2]
[312137460,1705666318102,-540.48400886,0.00024091,2]
[312137461,1705666318114,-500.0,0.00024091,2]
[312137462,1705666318125,-770.99,0.00024091,2]
[312137463,1705666318137,-758.67,0.00024091,2]
[312137464,1705666318148,-500.0,0.00024091,2]
[312137465,1705666318160,-500.0,0.00024091,2]
[312137466,1705666318171,-7664.11,0.00024091,2]
[312137467,1705666318184,-11303.55,0.00024091,2]
[312137468,1705666318195,-500.0,0.00024091,2]
[312137469,1705666318207,-902.16,0.00024091,2]
[312137470,1705666318218,-500.0,0.00024091,2]
[312137471,1705666318229,-500.0,0.00024091,2]
[312137472,1705666318239,-6250.14,0.00024091,2]
[312137473,1705666318252,-500.0,0.00024091,2]
[312137474,1705666318262,-500.0,0.00024091,2]
[312137475,1705666318273,-500.0,0.00024091,2]
[312137476,1705666318285,-664.96,0.00024091,2]
[312137477,1705666318296,-714.13,0.00024091,2]
[312137478,1705666318307,-462.13,0.00024091,2]
[312137479,1705666318318,-868.24,0.00024091,2]
[312137480,1705666318330,-500.0,0.00024091,2]
[312137481,1705666318342,-2960.31,0.00024091,2]
[312137482,1705666318354,-9834.44,0.00024091,2]
[312137483,1705666318365,-500.0,0.00024091,2]
[312137484,1705666318378,-2320.43,0.00024091,2]
[312137485,1705666318389,-500.0,0.00024091,2]
[312137486,1705666318400,-500.0,0.00024091,2]
[312137487,1705666318412,-500.0,0.00024091,2]
[312137488,1705666318423,-5976.03,0.00024091,2]
[312137489,1705666318435,-500.0,0.00024091,2]
[312137490,1705666318446,-1820.94,0.00024091,2]
[312137491,1705666318457,-823.03,0.00024091,2]
[312137492,1705666318469,-500.0,0.00024091,2]
[312137493,1705666318480,-500.0,0.00024091,2]
[312137494,1705666318491,-505.81,0.00024091,2]
[312137495,1705666318505,-1021.23,0.00024091,2]
[312137496,1705666318517,-645.27,0.00024091,2]
[312137497,1705666318528,-796.93,0.00024091,2]
[312137498,1705666318540,-500.0,0.00024091,2]
[312137499,1705666318552,-500.0,0.00024091,2]
[312137500,1705666318563,-500.0,0.00024091,2]
[312137501,1705666318575,-500.0,0.00024091,2]
[312137502,1705666318587,-1032.88,0.00024091,2]
[312137503,1705666318598,-511.50746851,0.00024091,2]
[312137504,1705666318609,-500.0,0.00024091,2]
[312137505,1705666318620,-560.11,0.00024091,2]
[312137506,1705666318630,-1063.08,0.00024091,2]
[312137507,1705666318642,-978.62,0.00024091,2]
[312137508,1705666318653,-3550.01,0.00024091,2]
[312137509,1705666318665,-500.0,0.00024091,2]
[312137510,1705666318675,-804.89,0.00024091,2]
[312137511,1705666318687,-500.0,0.00024091,2]
[312137512,1705666318699,-500.0,0.00024091,2]
[312137513,1705666318711,-500.0,0.00024091,2]
[312137514,1705666318721,-500.0,0.00024091,2]
[312137515,1705666318732,-964.83,0.00024091,2]
[312137516,1705666318743,-1091.51,0.00024091,2]
[312137517,1705666318754,-500.0,0.00024091,2]
[312137518,1705666318765,-758.43,0.00024091,2]
[312137519,1705666318777,-500.0,0.00024091,2]
[312137520,1705666318788,-11177.61,0.00024091,2]
[312137521,1705666318799,-705.91,0.00024091,2]
[312137522,1705666318811,-817.94,0.00024091,2]
[312137523,1705666318823,-500.0,0.00024091,2]
[312137524,1705666318835,-1738.46,0.00024091,2]
[312137525,1705666318846,-500.0,0.00024091,2]
[312137526,1705666318858,-500.0,0.00024091,2]
[312137527,1705666318868,-500.0,0.00024091,2]
[312137528,1705666318882,-500.0,0.00024091,2]
[312137529,1705666318893,-609.36,0.00024091,2]
[312137530,1705666318906,-500.0,0.00024091,2]
[312137531,1705666318917,-806.41,0.00024091,2]
[312137532,1705666318931,-1056.96,0.00024091,2]
[312137533,1705666318942,-500.0,0.00024091,2]
[312137534,1705666318955,-7058.53,0.00024091,2]
[312137535,1705666318967,-500.0,0.00024091,2]
[312137536,1705666318978,-500.0,0.00024091,2]
[312137537,1705666318989,-500.0,0.00024091,2]
[312137538,1705666319000,-500.0,0.00024091,2]
[312137539,1705666319013,-500.0,0.00024091,2]
[312137540,1705666319025,-500.0,0.00024091,2]
[312137541,1705666319036,-500.0,0.00024091,2]
[312137542,1705666319047,-500.0,0.00024091,2]
[312137543,1705666319059,-500.0,0.00024091,2]
[312137544,1705666319070,-500.0,0.00024091,2]
[312137545,1705666319081,-729.56,0.00024091,2]
[312137546,1705666319092,-500.0,0.00024091,2]
[312137547,1705666319104,-500.0,0.00024091,2]
[312137548,1705666319116,-3169.29,0.00024091,2]
[312137549,1705666319127,-500.0,0.00024091,2]
[312137550,1705666319138,-1141.43,0.00024091,2]
[312137551,1705666319151,-500.0,0.00024091,2]
[312137552,1705666319163,-2249.61,0.00024091,2]
[312137553,1705666319175,-500.0,0.00024091,2]
[312137554,1705666319185,-1700.24,0.00024091,2]
[312137555,1705666319197,-500.0,0.00024091,2]
[312137556,1705666319207,-500.0,0.00024091,2]
[312137557,1705666319218,-500.0,0.00024091,2]
[312137558,1705666319230,-500.0,0.00024091,2]
[312137559,1705666319241,-579.44,0.00024091,2]
[312137560,1705666319252,-500.0,0.00024091,2]
[312137561,1705666319263,-500.0,0.00024091,2]
[312137562,1705666319275,-2381.28,0.00024091,2]
[312137563,1705666319286,-1446.94,0.00024091,2]
[312137564,1705666319296,-500.0,0.00024091,2]
[312137565,1705666319308,-500.0,0.00024091,2]
[312137566,1705666319323,-4056.5,0.00024091,2]
[312137567,1705666319335,-500.0,0.00024091,2]
[312137568,1705666319346,-500.0,0.00024091,2]
[312137569,1705666319357,-500.0,0.00024091,2]
[312137570,1705666319369,-2985.9,0.00024091,2]
[312137571,1705666319380,-500.0,0.00024091,2]
[312137572,1705666319392,-696.64,0.00024091,2]
[312137573,1705666319403,-500.0,0.00024091,2]
[312137574,1705666319414,-4455.73,0.00024091,2]
[312137575,1705666319425,-994.17,0.00024091,2]
[312137576,1705666319435,-698.84,0.00024091,2]
[312137577,1705666319447,-500.0,0.00024091,2]
[312137578,1705666319458,-500.0,0.00024091,2]
[312137579,1705666319469,-1513.75,0.00024091,2]
[312137580,1705666319480,-2003.87,0.00024091,2]
[312137581,1705666319491,-500.0,0.00024091,2]
[312137582,1705666319502,-748.63,0.00024091,2]
[312137583,1705666319513,-902.53,0.00024092,2]
[312137584,1705666319524,-703.38,0.00024092,2]
[312137585,1705666319536,-979.41,0.00024092,2]
[312137586,1705666319547,-631.03,0.00024092,2]
[312137587,1705666319558,-500.0,0.00024092,2]
[312137588,1705666319569,-529.79,0.00024092,2]
[312137589,1705666319580,-507.27,0.00024092,2]
[312137590,1705666319592,-594.0,0.00024092,2]
[312137591,1705666319603,-604.23,0.00024092,2]
[312137592,1705666319615,-1297.18,0.00024092,2]
[312137593,1705666319626,-2265.29,0.00024092,2]
[312137594,1705666319638,-562.89,0.00024092,2]
[312137595,1705666319649,-500.0,0.00024092,2]
[312137596,1705666319660,-500.0,0.00024092,2]
[312137597,1705666319672,-500.0,0.00024092,2]
[312137598,1705666319684,-990.94,0.00024092,2]
[312137599,1705666319695,-614.26,0.00024092,2]
[312137600,1705666319706,-735.83,0.00024092,2]
[312137601,1705666319718,-856.19,0.00024092,2]
[312137602,1705666319730,-1419.84,0.00024092,2]
[312137603,1705666319741,-679.32,0.00024092,2]
[312137604,1705666319753,-680.33,0.00024092,2]
[312137605,1705666319765,-614.57,0.00024092,2]
[312137606,1705666319776,-1063.63,0.00024092,2]
[312137607,1705666319787,-1592.94,0.00024092,2]
[312137608,1705666319799,-500.0,0.00024092,2]
[312137609,1705666319810,-727.17,0.00024092,2]
[312137610,1705666319821,-903.46,0.00024092,2]
[312137611,1705666319832,-500.0,0.00024092,2]
[312137612,1705666319844,-500.0,0.00024092,2]
[312137613,1705666319855,-500.0,0.00024092,2]
[312137614,1705666319867,-1089.66,0.00024092,2]
[312137615,1705666319877,-617.46,0.00024092,2]
[312137616,1705666319888,-1111.8,0.00024092,2]
[312137617,1705666319899,-637.4,0.00024092,2]
[312137618,1705666319910,-1453.62,0.00024092,2]
[312137619,1705666319923,-500.0,0.00024092,2]
[312137620,1705666319936,-1203.6,0.00024092,2]
[312137621,1705666319948,-1735.78,0.00024092,2]
[312137622,1705666319958,-500.0,0.00024092,2]
[312137623,1705666319971,-1641.44,0.00024092,2]
[312137624,1705666319982,-500.0,0.00024092,2]
[312137625,1705666319994,-522.53,0.00024092,2]
[312137626,1705666320005,-1160.79,0.00024092,2]
[312137627,1705666320019,-1647.35,0.00024092,2]
[312137628,1705666320031,-500.0,0.00024092,2]
[312137629,1705666320044,-837.65,0.00024092,2]
[312137630,1705666320055,-1818.93,0.00024092,2]
[312137631,1705666320067,-1042.11,0.00024092,2]
[312137632,1705666320078,-2027.65,0.00024092,2]
[312137633,1705666320088,-500.0,0.00024092,2]
[312137634,1705666320099,-517.24661365,0.00024092,2]
[312137635,1705666320111,-981.43,0.00024092,2]
[312137636,1705666320122,-500.0,0.00024092,2]
[312137637,1705666320133,-1018.32,0.00024092,2]
[312137638,1705666320144,-3340.96,0.00024092,2]
[312137639,1705666320155,-981.57,0.00024092,2]
[312137640,1705666320165,-6001.65,0.00024092,2]
[312137641,1705666320177,-924.24,0.00024092,2]
[312137642,1705666320188,-1152.74,0.00024092,2]
[312137643,1705666320199,-500.0,0.00024092,2]
[312137644,1705666320210,-1251.53,0.00024092,2]
[312137645,1705666320221,-500.0,0.00024092,2]
[312137646,1705666320232,-1651.82,0.00024092,2]
[312137647,1705666320243,-609.46,0.00024092,2]
[312137648,1705666320255,-502.82,0.00024092,2]
[312137649,1705666320266,-1979.16,0.00024092,2]
[312137650,1705666320277,-500.0,0.00024092,2]
[312137651,1705666320288,-500.0,0.00024092,2]
[312137652,1705666320298,-1430.36,0.00024092,2]
[312137653,1705666320310,-542.04,0.00024092,2]
[312137654,1705666320321,-9723.53,0.00024092,2]
[312137655,1705666320332,-4403.92,0.00024092,2]
[312137656,1705666320343,-982.89,0.00024092,2]
[312137657,1705666320354,-1318.74,0.00024092,2]
[312137658,1705666320365,-646.54,0.00024092,2]
[312137659,1705666320375,-4083.32,0.00024092,2]
[312137660,1705666320386,-1199.37,0.00024092,2]
[312137661,1705666320397,-716.72,0.00024092,2]
[312137662,1705666320409,-875.53,0.00024092,2]
[312137663,1705666320420,-17230.42,0.00024092,2]
[312137664,1705666320431,-836.21,0.00024092,2]
[312137665,1705666320443,-753.81,0.00024092,2]
[312137666,1705666320453,-3033.73,0.00024092,2]
[312137667,1705666320465,-500.0,0.00024092,2]
[312137668,1705666320476,-4579.41,0.00024092,2]
[312137669,1705666320488,-500.0,0.00024092,2]
[312137670,1705666320499,-811.94,0.00024092,2]
[312137671,1705666320510,-6926.76,0.00024092,2]
[312137672,1705666320521,-500.0,0.00024092,2]
[312137673,1705666320532,-1707.03,0.00024092,2]
[312137674,1705666320544,-1650.31,0.00024092,2]
[312137675,1705666320554,-5046.73,0.00024092,2]
[312137676,1705666320566,-2778.35,0.00024092,2]
[312137677,1705666320577,-1008.17,0.00024092,2]
[312137678,1705666320588,-5761.46,0.00024092,2]
[312137679,1705666320600,-830.39,0.00024092,2]
[312137680,1705666320611,-1035.37,0.00024092,2]
[312137681,1705666320622,-1166.82,0.00024092,2]
[312137682,1705666320633,-520.25,0.00024092,2]
[312137683,1705666320645,-11508.39,0.00024092,2]
[312137684,1705666320656,-730.77,0.00024092,2]
[312137685,1705666320667,-1529.43,0.00024092,2]
[312137686,1705666320678,-602.34,0.00024092,2]
[312137687,1705666320689,-2801.61,0.00024092,2]
[312137688,1705666320700,-596.08,0.00024092,2]
[312137689,1705666320711,-847.54,0.00024092,2]
[312137690,1705666320722,-500.0,0.00024092,2]
[312137691,1705666320733,-1217.77,0.00024092,2]
[312137692,1705666320744,-1307.02,0.00024092,2]
[312137693,1705666320756,-1964.39,0.00024092,2]
[312137694,1705666320768,-726.13,0.00024092,2]